bitfinex/quotes_ETHUSD_20240709
["timestamp","ask_amount","ask_price","bid_price","bid_amount"]
[1720549050615,1.32661147,3071.7,3071.5,3.25573]
[1720549050817,1.02248277,3071.6,3071.3,3.25585]
[1720549051125,1.32661147,3071.4,3071.3,3.25585]
[1720549051675,0.3041287,3071.4,3071.3,3.25585]
[1720549051874,0.1041287,3071.4,3071.3,3.25585]
[1720549052076,1.12661147,3071.4,3071.3,3.25585]
[1720549052297,0.1041287,3071.4,3071.3,3.25585]
[1720549052974,0.1041287,3071.4,3070.5,2.2953]
[1720549053173,0.68121913,3071.1,3070.8,3.25643]
[1720549053412,0.68121913,3071.0,3070.8,3.25643]
[1720549053625,0.68121913,3071.0,3070.9,3.25637]
[1720549053921,0.68121913,3071.1,3070.9,6.51267]
[1720549054073,0.68121913,3071.1,3071.0,3.25626]
[1720549054274,0.68121913,3071.3,3071.2,3.25605]
[1720549055135,1.02248277,3071.4,3071.2,3.25605]
[1720549055431,0.68126675,3071.3,3071.2,3.25605]
[1720549056211,1.02248277,3071.3,3071.0,3.25617]
[1720549056511,0.68121186,3071.1,3071.0,3.25617]
[1720549057006,0.78534056,3071.1,3071.0,3.25617]
[1720549057210,0.1041287,3071.1,3071.0,3.25617]
[1720549057407,0.78527642,3071.1,3071.0,3.25617]
[1720549057708,0.78527642,3071.1,3070.6,3.0]
[1720549057709,0.1041287,3070.7,3070.6,3.0]
[1720549057908,0.1041287,3070.7,3070.6,7.04291]
[1720549058108,0.1041287,3070.7,3070.6,10.04291]
[1720549058598,0.1041287,3070.7,3070.6,7.04291]
[1720549058796,0.1041287,3070.7,3070.6,6.51338]
[1720549059001,0.68110593,3071.0,3070.6,3.25669]
[1720549059002,0.68110593,3070.9,3070.6,3.25669]
[1720549059314,0.78523463,3071.0,3070.8,3.25648]
[1720549059609,0.1041287,3071.0,3070.9,3.25637]
[1720549061516,0.1041287,3071.0,3070.9,6.51274]
[1720549061735,0.68072116,3071.1,3070.9,6.51274]
[1720549061736,0.68072116,3071.1,3071.0,6.51252]
[1720549062021,0.1041287,3071.1,3071.0,6.51252]
[1720549062382,0.1041287,3071.1,3071.0,3.25626]
[1720549063535,0.78484986,3071.1,3070.9,3.25629]
[1720549064032,0.78484986,3071.1,3070.9,6.51261]
[1720549064579,0.1041287,3071.1,3070.9,6.51261]
[1720549064780,0.78484986,3071.1,3070.9,3.25629]
[1720549065405,0.78484986,3071.1,3070.8,3.25641]
[1720549065924,0.78484986,3071.1,3070.9,3.25636]
[1720549067037,0.1041287,3071.1,3070.9,3.25636]
[1720549068624,0.1041287,3071.1,3070.9,6.51267]
[1720549068809,0.1041287,3071.0,3070.9,3.25631]
[1720549069319,0.68072116,3071.3,3071.2,3.25605]
[1720549069512,0.78484986,3071.3,3071.2,3.25605]
[1720549071121,0.78429387,3071.3,3071.2,3.25605]
[1720549071326,0.1041287,3071.1,3071.0,3.25616]
[1720549072521,0.1041287,3071.1,3071.0,6.51242]
[1720549072727,0.68016517,3071.3,3071.2,6.5121]
[1720549072891,0.68016517,3071.3,3071.0,6.249902]
[1720549072892,0.68016517,3071.6,3071.3,3.25595]
[1720549073104,0.78429387,3071.7,3071.6,6.51126]
[1720549073399,0.1041287,3071.7,3071.6,6.51126]
[1720549077007,0.1041287,3071.9,3071.8,6.51084]
[1720549077926,8.14070611,3072.1,3071.8,6.51084]
[1720549077927,0.68070611,3072.1,3072.0,6.5104]
[1720549078128,13.56141223,3072.4,3072.1,3.2551]
[1720549078129,0.68070611,3072.2,3072.1,3.2551]
[1720549078331,1.12751134,3072.2,3072.1,6.5102]
[1720549078531,0.78533994,3072.3,3072.2,6.50998]
[1720549078717,1.91281026,3072.3,3072.2,6.50998]
[1720549079047,1.91280788,3072.3,3072.2,6.50998]
[1720549079215,1.23159593,3072.3,3072.2,6.50998]
[1720549079544,2.25268874,3072.3,3072.2,3.25499]
[1720549079832,2.25368044,3072.3,3072.2,3.25499]
[1720549080130,2.25368044,3072.3,3072.2,6.50998]
[1720549080331,2.25368044,3072.3,3072.2,3.25499]
[1720549080849,2.25376509,3072.3,3072.2,3.25499]
[1720549081006,2.25379905,3072.3,3072.2,3.25499]
[1720549081329,2.25382118,3072.3,3072.2,3.25499]
[1720549081528,2.25382118,3072.3,3072.2,6.50998]
[1720549081729,0.78562337,3072.3,3072.2,6.50998]
[1720549082136,0.78562337,3072.3,3072.2,3.25499]
[1720549082335,0.1041287,3072.3,3072.2,3.25499]
[1720549082520,0.1041287,3072.3,3072.2,6.50998]
[1720549082834,0.78566989,3072.3,3072.2,6.50998]
[1720549083206,0.78566989,3072.3,3072.1,3.25501]
[1720549083400,0.68143669,3072.2,3072.1,3.25501]
[1720549084135,0.68143669,3072.2,3072.1,6.51011]
[1720549084737,0.78556539,3072.3,3072.2,6.50998]
[1720549085449,0.78556539,3072.3,3072.2,3.25499]
[1720549085749,0.1041287,3072.1,3071.9,3.25529]
[1720549085951,0.78576215,3072.1,3071.9,3.25529]
[1720549086248,0.1041287,3071.7,3071.6,3.25555]
[1720549086631,0.78566682,3071.7,3071.6,3.25555]
[1720549086948,0.78566682,3071.7,3071.6,6.51118]
[1720549086949,0.1041287,3071.7,3071.6,6.51118]
[1720549087117,0.1041287,3071.7,3071.6,3.25555]
[1720549087319,0.78566682,3071.7,3071.6,3.25555]
[1720549087737,0.1041287,3071.7,3071.6,3.25555]
[1720549088139,0.1041287,3071.7,3071.6,6.51118]
[1720549090339,0.78566682,3071.7,3071.6,6.51118]
[1720549090543,0.1041287,3071.7,3071.6,6.51118]
[1720549090751,0.78566682,3071.7,3071.6,6.51118]
[1720549091056,0.1041287,3071.7,3071.6,6.51118]
[1720549091237,0.78566682,3071.7,3071.6,3.25555]
[1720549091420,0.1041287,3071.7,3071.6,3.25555]
[1720549091621,0.78610628,3071.7,3071.6,3.25555]
[1720549092052,0.78610628,3071.7,3071.6,6.51118]
[1720549092419,0.78610628,3071.7,3071.6,3.25555]
[1720549092637,0.1041287,3071.7,3071.6,3.25555]
[1720549093761,0.78628524,3071.7,3071.6,3.25555]
[1720549094168,0.78628524,3071.7,3071.6,6.51118]
[1720549094566,0.1041287,3071.7,3071.6,6.51118]
[1720549095065,0.78628524,3071.7,3071.6,3.25555]
[1720549095253,0.1041287,3071.7,3071.5,6.5113]
[1720549095565,0.1041287,3071.7,3071.6,3.25563]
[1720549095872,0.1041287,3071.7,3071.5,3.25573]
[1720549096174,1.02299547,3071.8,3071.3,3.25585]
[1720549096175,0.1041287,3071.4,3071.3,3.25585]
[1720549096335,0.78622496,3071.4,3071.3,3.25585]
[1720549097330,0.78622496,3071.4,3070.9,3.25634]
[1720549097331,0.1041287,3071.2,3071.1,3.25613]
[1720549097575,0.1041287,3071.2,3070.9,3.25633]
[1720549097777,0.1041287,3070.8,3070.7,3.2565]
[1720549098023,0.68208035,3070.9,3070.8,3.25648]
[1720549098323,0.68208035,3070.9,3070.4,3.25685]
[1720549098324,0.8630008,3070.9,3070.4,3.25685]
[1720549098508,0.1041287,3070.5,3070.4,3.25685]
[1720549098683,0.78608517,3070.5,3070.4,3.25685]
[1720549098877,0.78608517,3070.5,3069.9,2.408]
[1720549098878,0.1041287,3070.3,3070.0,3.2573]
[1720549099099,0.1041287,3070.3,3070.2,3.25711]
[1720549099580,0.1041287,3070.3,3069.3,3.25801]
[1720549099581,0.1041287,3070.1,3069.8,3.25751]
[1720549099783,0.1041287,3069.9,3069.8,3.25751]
[1720549100482,0.1041287,3070.1,3070.0,3.25732]
[1720549100911,0.1041287,3070.1,3070.0,6.51464]
[1720549101398,0.1041287,3070.1,3070.0,3.25732]
[1720549101809,0.1041287,3070.1,3070.0,6.51464]
[1720549102118,0.1041287,3070.3,3070.2,3.25711]
[1720549103995,0.1041287,3070.3,3070.0,3.25723]
[1720549104200,0.1041287,3070.1,3070.0,3.25723]
[1720549104401,0.1041287,3069.9,3069.8,3.25748]
[1720549104631,0.1041287,3069.9,3069.8,6.51496]
[1720549104801,0.1041287,3069.9,3069.8,3.25748]
[1720549110213,0.1041287,3069.5,3068.9,3.25849]
[1720549110402,0.1041287,3069.5,3069.4,6.51592]
[1720549110605,0.1041287,3070.3,3069.8,3.25747]
[1720549110912,3.78412069,3070.5,3070.1,6.51436]
[1720549111319,0.1041287,3070.2,3069.9,5.74944]
[1720549111519,0.1041287,3070.0,3069.9,3.25734]
[1720549111748,0.1041287,3070.0,3069.7,3.25763]
[1720549112253,0.67999199,3070.2,3069.1,5.75035]
[1720549112254,0.1041287,3069.2,3069.1,3.25817]
[1720549112568,0.1041287,3069.2,3069.1,6.51645]
[1720549114454,0.1041287,3069.2,3069.1,3.25817]
[1720549114681,0.1041287,3069.2,3069.0,3.25836]
[1720549114958,0.1041287,3068.9,3068.8,3.2586]
[1720549115165,0.1041287,3068.9,3068.8,3.6454279]
[1720549115916,0.1041287,3068.7,3068.5,3.25887]
[1720549116223,0.1041287,3068.4,3068.2,3.25922]
[1720549116830,0.1041287,3068.2,3068.1,3.25931]
[1720549117023,0.1041287,3068.7,3068.1,3.25931]
[1720549117311,0.1041287,3067.9,3067.8,3.25966]
[1720549117517,2.4491,3068.7,3067.6,2.816188]
[1720549117518,0.1041287,3068.3,3067.6,2.816188]
[1720549117751,0.1041287,3068.1,3067.7,3.5412888]
[1720549117948,0.1041287,3067.8,3067.7,3.25967]
[1720549118148,0.1041287,3067.8,3067.7,3.25977]
[1720549120062,0.1041287,3067.8,3067.7,6.51954]
[1720549120352,7.46,3068.4,3068.0,3.25938]
[1720549120579,7.46,3068.4,3068.3,3.25913]
[1720549120730,0.1041287,3068.6,3068.4,3.25899]
[1720549121326,0.1041287,3068.3,3068.2,3.25915]
[1720549121755,0.1041287,3068.3,3068.2,6.51838]
[1720549122061,0.1041287,3068.6,3068.5,6.51784]
[1720549122252,12.2,3068.7,3068.6,6.51762]
[1720549122459,0.1041287,3069.1,3068.6,6.51762]
[1720549122460,0.1041287,3069.1,3069.0,6.51678]
[1720549124040,0.1041287,3069.1,3069.0,9.77517]
[1720549128256,7.46,3069.6,3069.5,6.5157]
[1720549129850,7.46,3069.6,3069.5,3.25785]
[1720549130046,7.5641287,3069.6,3069.5,3.25785]
[1720549130274,0.1041287,3069.3,3069.2,3.25808]
[1720549130434,0.1041287,3069.2,3069.1,6.51656]
[1720549131492,0.1041287,3069.2,3068.6,0.3]
[1720549131638,0.1041287,3068.9,3068.8,3.25853]
[1720549131844,0.1041287,3069.5,3068.5,5.4654]
[1720549132048,7.46,3069.6,3069.3,6.51602]
[1720549132267,0.1041287,3069.5,3069.3,3.25801]
[1720549133753,0.1041287,3069.5,3069.3,6.51602]
[1720549134081,0.1041287,3069.5,3069.4,3.25796]
[1720549134794,12.2,3069.9,3069.7,3.2576]
[1720549134950,0.1041287,3069.8,3069.7,3.2576]
[1720549135155,10.46,3070.3,3068.8,3.25852]
[1720549135156,0.1041287,3070.0,3069.8,6.51498]
[1720549135360,0.1041287,3070.0,3069.8,3.25747]
[1720549136281,0.1041287,3070.0,3069.9,3.25743]
[1720549138674,0.1041287,3070.0,3069.9,6.51486]
[1720549139329,0.1041287,3070.0,3069.9,3.25743]
[1720549141207,0.1041287,3070.0,3069.9,6.51486]
[1720549142219,0.1041287,3069.8,3069.7,3.25757]
[1720549143008,0.1041287,3069.8,3069.7,6.51521]
[1720549143345,7.46,3070.3,3070.2,3.25711]
[1720549143509,7.5641287,3070.3,3070.2,3.25711]
[1720549145914,7.5641287,3070.3,3070.2,6.51422]
[1720549146846,7.46,3070.3,3070.2,6.51422]
[1720549147159,7.5641287,3070.3,3070.2,6.51422]
[1720549148443,0.1041287,3070.3,3070.2,3.25711]
[1720549148646,0.1041287,3069.9,3069.8,3.25747]
[1720549149401,0.1041287,3069.9,3069.8,6.51501]
[1720549151041,0.1041287,3069.9,3069.8,3.25747]
[1720549151727,0.1041287,3069.9,3069.8,6.51501]
[1720549153306,0.1041287,3069.9,3069.8,3.25747]
[1720549156032,0.1041287,3069.6,3069.5,6.51564]
[1720549156404,0.1041287,3069.8,3069.7,3.25764]
[1720549156640,1.23255292,3069.8,3069.7,6.51528]
[1720549156841,1.23257478,3069.8,3069.7,6.51528]
[1720549157144,1.23257478,3069.8,3069.7,3.25764]
[1720549157748,1.23257478,3069.8,3069.7,6.51528]
[1720549157924,1.23257478,3069.8,3069.7,3.25764]
[1720549158542,1.23257478,3069.8,3069.5,3.2578]
[1720549158770,0.1041287,3069.6,3069.2,3.2581]
[1720549158925,0.67954127,3069.8,3069.2,6.51627]
[1720549158926,0.1041287,3069.3,3069.2,6.51627]
[1720549159979,0.1041287,3069.5,3069.4,3.25786]
[1720549160290,0.1041287,3069.5,3069.4,6.51582]
[1720549160842,0.1041287,3069.7,3069.6,6.5155]
[1720549161045,8.13954127,3070.0,3069.9,6.51486]
[1720549161046,7.46,3070.0,3069.9,6.51486]
[1720549161262,8.69247344,3070.0,3069.9,6.51486]
[1720549161474,8.69247344,3070.0,3069.8,3.25751]
[1720549161641,9.37201471,3070.0,3069.8,3.25751]
[1720549161845,1.12834474,3069.9,3069.8,3.25751]
[1720549162385,0.1041287,3069.8,3069.7,3.25764]
[1720549162533,1.23247344,3069.8,3069.7,3.25764]
[1720549162747,1.23247344,3069.8,3069.6,3.25775]
[1720549162945,1.12844887,3069.7,3069.6,3.25775]
[1720549163152,0.1041287,3069.5,3069.4,3.25786]
[1720549163804,0.1041287,3069.5,3069.4,6.51582]
[1720549164443,0.67954127,3069.8,3069.1,3.25824]
[1720549164686,0.78366997,3069.8,3069.7,3.25764]
[1720549164888,1.91209447,3069.8,3069.7,3.25764]
[1720549165190,1.2325532,3069.8,3069.7,3.25764]
[1720549165493,1.1284245,3069.8,3069.7,3.25764]
[1720549165698,1.2325532,3069.8,3069.7,3.25764]
[1720549166000,1.1284245,3069.8,3069.7,3.25764]
[1720549166154,3.57194021,3069.8,3069.5,3.25778]
[1720549166355,1.02171331,3069.6,3069.1,3.25826]
[1720549166657,0.1041287,3069.2,3069.1,3.25826]
[1720549166857,1.91384897,3069.2,3069.1,3.25826]
[1720549167086,1.23272204,3069.2,3069.1,3.25826]
[1720549167252,3.67651065,3069.2,3069.1,3.25826]
[1720549168061,3.67651065,3069.2,3068.9,3.2584]
[1720549168062,0.1041287,3069.0,3068.9,3.2584]
[1720549168458,1.526204,3069.0,3068.9,6.51689]
[1720549168672,2.65493706,3069.0,3068.9,6.51689]
[1720549168872,0.1041287,3068.8,3068.2,2.2855]
[1720549169110,0.78572418,3068.6,3068.5,3.25892]
[1720549169264,0.1041287,3068.6,3068.5,6.51784]
[1720549170102,0.78525617,3068.6,3068.5,6.51784]
[1720549170468,1.12656024,3068.6,3068.5,6.51784]
[1720549170889,2.54890876,3068.6,3068.5,6.51784]
[1720549171085,0.1041287,3068.6,3068.5,6.51784]
[1720549172165,0.1041287,3068.6,3068.2,5.5447]
[1720549172166,1.02243154,3068.6,3068.3,3.25907]
[1720549172361,0.1041287,3068.1,3067.3,2.838]
[1720549172568,0.68064792,3068.2,3067.6,3.25981]
[1720549172774,0.78477662,3067.7,3067.6,3.25981]
[1720549172970,0.78460364,3067.7,3067.6,3.25981]
[1720549173344,0.1041287,3067.7,3067.6,3.25981]
[1720549173492,0.1041287,3067.7,3067.6,6.51968]
[1720549174079,0.68047494,3068.2,3068.0,3.25945]
[1720549174389,0.68047494,3068.5,3068.4,6.51804]
[1720549174705,12.2,3068.6,3068.5,3.25892]
[1720549174706,12.88047494,3068.6,3068.5,3.25892]
[1720549174913,12.2,3068.6,3068.5,3.25892]
[1720549175495,0.78460364,3068.7,3068.6,3.25881]
[1720549175821,0.1041287,3068.7,3068.6,3.25881]
[1720549177819,0.1041287,3068.5,3068.3,3.25907]
[1720549178019,0.1041287,3068.5,3068.4,3.25902]
[1720549178888,0.1041287,3068.5,3068.3,3.25907]
[1720549179297,0.1041287,3068.5,3068.3,6.51814]
[1720549179621,0.1041287,3068.5,3068.3,3.25907]
[1720549179839,0.67922009,3068.6,3068.3,3.25907]
[1720549179998,0.67922009,3068.6,3068.3,6.51814]
[1720549180324,0.67922009,3068.7,3068.3,3.25907]
[1720549180545,0.67922009,3068.6,3068.3,3.25907]
[1720549180845,0.67922009,3068.7,3068.4,3.25897]
[1720549180990,0.67922009,3068.7,3068.3,3.25907]
[1720549181197,0.1041287,3068.4,3068.3,6.5182]
[1720549181420,1.01883014,3068.9,3068.3,0.65182]
[1720549181421,0.1041287,3068.7,3068.3,0.65182]
[1720549181626,0.1041287,3068.7,3068.6,3.25881]
[1720549182398,0.1041287,3068.7,3068.6,6.51762]
[1720549188658,8.24300629,3069.1,3069.0,3.25839]
[1720549188827,0.1041287,3069.1,3069.0,3.25839]
[1720549189157,0.1041287,3069.1,3069.0,6.51678]
[1720549190512,0.1041287,3069.1,3069.0,3.25839]
[1720549191121,1.23286218,3069.1,3069.0,3.25839]
[1720549191611,1.23286218,3069.1,3069.0,6.51678]
[1720549191815,0.1041287,3069.1,3069.0,3.25839]
[1720549192045,0.1041287,3068.8,3068.7,8.80084]
[1720549193015,0.1041287,3068.8,3068.7,3.25864]
[1720549193246,0.1041287,3068.8,3068.6,3.25872]
[1720549193247,1.23294134,3068.8,3068.6,3.25872]
[1720549193451,0.97418818,3068.8,3068.6,3.25872]
[1720549193756,0.1041287,3068.5,3068.4,3.25895]
[1720549195121,1.2330622,3068.5,3068.4,3.25895]
[1720549195771,0.1041287,3068.5,3068.4,3.25895]
[1720549195981,0.1041287,3068.5,3068.4,6.51797]
[1720549196634,0.1041287,3068.7,3068.6,6.51762]
[1720549197035,1.23293012,3068.7,3068.6,6.51762]
[1720549197752,0.1041287,3068.7,3068.6,9.77643]
[1720549200956,0.1041287,3068.9,3068.8,6.5172]
[1720549201361,1.23284826,3068.9,3068.8,6.5172]
[1720549201570,0.1041287,3068.9,3068.8,6.5172]
[1720549201759,1.23283227,3068.9,3068.8,6.5172]
[1720549202461,1.23283227,3068.9,3068.8,10.42752]
[1720549202779,0.1041287,3068.9,3068.8,10.42752]
[1720549204185,0.6800705,3069.1,3069.0,9.77517]
[1720549204484,8.48010575,3069.2,3069.0,9.77517]
[1720549204485,7.46,3069.2,3069.1,12.09274]
[1720549204696,7.46,3069.2,3069.1,13.070257]
[1720549205049,7.46,3069.2,3069.1,16.328537]
[1720549208054,0.1041287,3069.5,3069.4,9.77388]
[1720549208289,0.1041287,3069.5,3069.4,10.751268]
[1720549209155,7.5641287,3069.7,3069.6,6.5155]
[1720549209352,7.5641287,3069.7,3069.6,9.77325]
[1720549209353,7.46,3069.7,3069.6,9.77325]
[1720549209560,7.46,3069.7,3069.6,14.1060638]
[1720549209809,7.46,3069.7,3069.6,19.6029638]
[1720549210348,7.46,3069.7,3069.6,22.8607138]
[1720549211058,12.2,3069.9,3069.8,16.2877]
[1720549211262,7.46,3070.3,3070.2,9.77133]
[1720549211572,7.46,3070.3,3070.2,12.09643]
[1720549211772,7.46,3070.3,3070.2,13.306073]
[1720549212474,7.5641287,3070.3,3070.2,6.51422]
[1720549212675,7.5641287,3070.3,3070.2,3.25711]
[1720549213099,7.5641287,3070.3,3070.2,6.51422]
[1720549216121,7.5641287,3070.3,3070.2,9.77133]
[1720549216416,7.46,3070.3,3070.2,9.77133]
[1720549216570,7.5641287,3070.3,3070.2,11.357988]
[1720549217312,7.5641287,3070.3,3070.2,9.77133]
[1720549218887,7.5641287,3070.3,3070.2,6.51422]
[1720549224546,7.46,3070.3,3070.2,9.77133]
[1720549224856,7.46,3070.3,3070.2,13.02844]
[1720549225127,7.46,3070.9,3070.8,13.02592]
[1720549225333,19.7641287,3071.4,3071.3,6.5119]
[1720549226892,0.1041287,3071.8,3071.7,6.51104]
[1720549227094,0.1041287,3071.8,3071.7,12.60456]
[1720549227434,0.1041287,3071.8,3071.7,14.109236]
[1720549227733,0.1041287,3072.2,3072.1,6.5102]
[1720549227952,7.46,3073.0,3072.1,2.838]
[1720549228147,7.46,3073.3,3073.2,9.76179]
[1720549228316,12.2,3074.0,3073.2,9.76179]
[1720549228317,7.46,3074.0,3073.9,6.50638]
[1720549228516,0.1041287,3074.1,3074.0,6.50618]
[1720549228843,0.1041287,3073.7,3073.6,3.25351]
[1720549229011,0.1041287,3073.9,3072.9,0.68461402]
[1720549229213,0.1041287,3073.9,3073.8,3.2533]
[1720549229402,0.1041287,3073.9,3073.8,6.5066]
[1720549229608,0.1041287,3074.1,3074.0,6.50618]
[1720549229807,0.1041287,3074.1,3074.0,3.25309]
[1720549230439,0.1041287,3073.4,3073.3,3.25378]
[1720549231015,0.1041287,3073.4,3073.3,6.50761]
[1720549231717,0.1041287,3073.4,3072.2,4.42802]
[1720549231906,0.1041287,3073.4,3072.9,3.25424]
[1720549232246,0.1041287,3073.0,3072.9,3.25424]
[1720549233341,7.46,3073.5,3073.4,3.25372]
[1720549233542,0.1041287,3073.9,3073.8,3.2533]
[1720549233943,0.1041287,3073.9,3073.8,6.5066]
[1720549234247,0.1041287,3073.9,3073.8,9.7599]
[1720549235439,0.1041287,3073.9,3073.8,6.5066]
[1720549236810,0.1041287,3073.9,3073.5,2.4929]
[1720549236811,0.1041287,3074.1,3074.0,6.50618]
[1720549238448,0.1041287,3074.1,3074.0,3.25309]
[1720549238649,0.1041287,3074.1,3072.8,3.25433]
[1720549238650,0.1041287,3074.1,3073.3,3.25382]
[1720549238856,0.1041287,3073.7,3073.6,3.2535]
[1720549239214,0.1041287,3074.0,3073.9,3.25319]
[1720549239516,0.1041287,3074.0,3073.9,6.50638]
[1720549239928,0.1041287,3074.0,3073.9,3.25319]
[1720549240547,0.1041287,3073.8,3073.7,3.2533]
[1720549240748,0.1041287,3073.8,3073.7,6.5067]
[1720549240952,7.46,3074.4,3073.7,6.5067]
[1720549240953,0.1041287,3074.1,3073.7,6.5067]
[1720549241149,0.1041287,3074.1,3074.0,6.50618]
[1720549241315,0.1041287,3074.1,3074.0,3.25309]
[1720549243253,0.1041287,3074.1,3074.0,6.50618]
[1720549244115,7.46,3074.4,3073.4,2.484]
[1720549244116,0.1041287,3073.8,3073.4,2.484]
[1720549244312,0.1041287,3073.8,3073.7,6.5068]
[1720549244551,0.1041287,3074.2,3074.1,6.50596]
[1720549244869,0.1041287,3074.2,3074.1,7.156556]
[1720549245012,0.1041287,3074.2,3074.1,6.50596]
[1720549245211,0.1041287,3074.2,3073.4,5.73766]
[1720549245212,0.1041287,3074.4,3074.3,6.50554]
[1720549245465,0.1041287,3074.4,3074.3,7.481379]
[1720549245627,0.1041287,3074.4,3074.3,6.50554]
[1720549246517,0.1041287,3074.6,3074.5,6.50512]
[1720549249012,0.1041287,3074.6,3074.5,10.408192]
[1720549250953,7.46,3075.1,3074.5,10.408192]
[1720549250954,7.5641287,3075.1,3074.7,3.25234]
[1720549251153,0.1041287,3075.5,3075.4,6.5032]
[1720549251353,0.1041287,3075.5,3075.4,9.7548]
[1720549251744,7.46,3076.0,3075.9,6.50216]
[1720549251914,7.46,3076.0,3075.9,9.75324]
[1720549252432,4.66560514,3076.5,3076.4,6.5011]
[1720549252759,4.66560514,3076.5,3075.9,3.777]
[1720549252760,0.1041287,3076.0,3075.9,3.777]
[1720549252924,0.1041287,3076.0,3075.9,6.50216]
[1720549253115,16.86560514,3077.0,3076.8,3.25007]
[1720549253318,0.1127132,3077.3,3076.0,3.25088]
[1720549253319,0.1127132,3077.3,3077.2,6.4994]
[1720549253556,0.1127132,3077.3,3077.2,9.7491]
[1720549253743,0.1127132,3077.3,3077.2,10.73050862]
[1720549253948,0.1127132,3077.3,3077.2,7.48080862]
[1720549254132,0.1127132,3077.3,3076.9,3.24998]
[1720549254351,0.1127132,3077.3,3077.2,3.2497]
[1720549255060,0.1127132,3077.3,3076.2,0.68461402]
[1720549255262,0.1127132,3077.3,3076.2,7.62884742]
[1720549255650,0.1127132,3077.3,3076.4,3.25052]
[1720549255850,3.5507132,3077.3,3075.6,3.777]
[1720549256048,6.24971,3077.2,3075.9,3.25106]
[1720549256280,3.24981,3077.1,3075.7,3.25128]
[1720549256481,3.24981,3077.1,3075.8,3.25115]
[1720549256482,0.1041287,3076.1,3075.8,3.25115]
[1720549256778,0.1041287,3076.1,3075.1,7.02887]
[1720549256779,4.66560514,3076.5,3075.4,3.25157]
[1720549256940,4.66560514,3076.5,3075.6,3.25136]
[1720549257142,3.0,3076.4,3075.8,3.25116]
[1720549257438,0.1041287,3076.1,3075.8,3.25116]
[1720549257838,3.0,3076.4,3075.7,3.25124]
[1720549258101,0.1041287,3075.8,3075.5,3.25145]
[1720549258279,0.1041287,3075.8,3075.2,0.7713574]
[1720549258280,0.1041287,3075.8,3075.6,3.25136]
[1720549258440,0.1041287,3075.5,3075.4,3.2516]
[1720549258782,3.0,3076.4,3075.3,3.25168]
[1720549259081,0.1041287,3076.0,3075.5,3.25149]
[1720549259380,0.55,3076.3,3075.4,3.2516]
[1720549259679,0.1041287,3075.6,3075.5,3.25148]
[1720549260505,4.66560514,3076.0,3074.8,3.577424]
[1720549260777,4.66560514,3076.0,3074.8,3.25223]
[1720549260778,0.1041287,3074.9,3074.8,3.25223]
[1720549261169,4.66560514,3075.4,3074.3,2.3559]
[1720549261380,4.66560514,3075.4,3074.5,3.777]
[1720549261549,4.66560514,3075.4,3075.3,3.25171]
[1720549261752,4.76973384,3075.4,3075.3,3.25171]
[1720549262251,9.19905,3076.3,3075.0,3.25201]
[1720549262252,0.1041287,3075.9,3075.5,3.2515]
[1720549262479,0.1041287,3075.7,3075.5,3.2515]
[1720549262680,0.1041287,3075.9,3075.8,6.50236]
[1720549262864,4.66560514,3076.3,3076.2,6.50152]
[1720549263072,0.1041287,3076.4,3076.3,3.25065]
[1720549263269,0.1041287,3076.2,3076.0,3.25095]
[1720549263470,0.1041287,3076.3,3076.2,3.25068]
[1720549263889,0.1041287,3076.3,3076.2,6.50144]
[1720549264573,4.66560514,3076.8,3075.8,3.25111]
[1720549264776,7.91576514,3076.8,3075.8,3.25116]
[1720549264953,3.0,3076.7,3075.9,3.25101]
[1720549265158,0.1041287,3076.1,3076.0,3.25096]
[1720549265598,0.1041287,3075.9,3075.7,0.00084637]
[1720549265811,0.1041287,3075.9,3075.8,3.25118]
[1720549265960,3.0,3076.7,3076.2,3.25075]
[1720549265961,0.1041287,3076.4,3076.2,3.25075]
[1720549266159,0.1041287,3076.4,3076.3,3.25065]
[1720549266387,0.1041287,3076.4,3076.3,6.5013]
[1720549266794,4.88244704,3077.3,3077.2,6.4994]
[1720549267104,0.2168419,3077.3,3077.2,6.4994]
[1720549267392,0.2168419,3077.3,3076.8,3.25009]
[1720549267693,0.2168419,3077.3,3076.6,3.25023]
[1720549267857,0.1127132,3077.3,3076.5,3.25035]
[1720549268057,0.2168419,3077.3,3076.7,3.25014]
[1720549268304,0.1127132,3077.3,3077.2,3.2497]
[1720549268484,0.1127132,3077.3,3077.2,6.4994]
[1720549268802,0.2168419,3077.3,3077.2,6.4994]
[1720549269314,0.2168419,3077.3,3077.0,3.24983]
[1720549269315,0.1127132,3077.3,3077.0,3.24983]
[1720549269455,0.1127132,3077.3,3076.3,6.777]
[1720549269456,0.2168419,3077.3,3076.4,3.25053]
[1720549269656,0.2168419,3077.3,3077.2,3.2497]
[1720549269865,0.2168419,3077.3,3077.2,6.4994]
[1720549270167,0.1127132,3077.3,3077.2,9.7491]
[1720549270488,0.1127132,3077.3,3077.2,10.72401]
[1720549271605,0.1127132,3077.3,3077.2,16.41151]
[1720549272796,3.2e-06,3077.3,3077.2,16.41151]
[1720549273143,0.1041287,3078.1,3078.0,6.49772]
[1720549273274,0.1041287,3078.1,3078.0,7.147492]
[1720549273461,0.1041287,3078.1,3078.0,6.49772]
[1720549275683,0.1041287,3078.1,3078.0,9.74658]
[1720549275870,0.1041287,3078.3,3078.2,6.4973]
[1720549276195,0.1041287,3078.3,3078.2,9.74595]
[1720549276491,0.1041287,3078.2,3078.1,3.24874]
[1720549276694,0.1041287,3078.2,3077.8,3.24905]
[1720549276915,4.66560514,3078.6,3077.8,6.49812]
[1720549276916,0.1041287,3077.9,3077.8,6.49812]
[1720549277089,4.66560514,3078.6,3078.0,3.24886]
[1720549277090,0.1041287,3078.1,3078.0,3.24886]
[1720549277476,0.1041287,3078.1,3078.0,6.49772]
[1720549280079,2.3928,3078.5,3077.6,3.24928]
[1720549280340,0.1041287,3077.7,3077.6,3.24928]
[1720549280695,2.3928,3078.5,3077.3,3.24951]
[1720549280696,0.1041287,3077.4,3077.3,3.24951]
[1720549280875,4.66560514,3078.0,3077.0,3.777]
[1720549281083,0.1041287,3077.5,3077.3,3.24959]
[1720549281328,0.1041287,3077.5,3077.4,3.24949]